bitfinex-derivatives/quotes_SOLF0:USTF0_20241226
["timestamp","ask_amount","ask_price","bid_price","bid_amount"]
[1735198550040,7.13401609,193.61,193.49,8.2117751]
[1735198550240,19.96244966,193.61,193.47,12.82843357]
[1735198550741,12.82843357,193.61,193.47,12.82843357]
[1735198550947,2.5856,193.57,193.53,2.586]
[1735198551541,2.5856,193.57,193.52,2.5861]
[1735198552242,2.5856,193.56,193.51,2.5862]
[1735198553036,2.5857,193.55,193.51,2.5862]
[1735198553232,41.20728543,193.62,193.47,12.82843357]
[1735198553431,41.20728543,193.62,193.5,2.5863]
[1735198553744,7.13401609,193.61,193.5,2.5863]
[1735198553940,7.13401609,193.61,193.47,12.82843357]
[1735198554335,7.13401609,193.61,193.5,12.82843357]
[1735198554533,2.5852,193.6,193.56,2.5856]
[1735198554833,41.56258545,193.61,193.51,4.7445]
[1735198555238,2.5854,193.58,193.54,2.5858]
[1735198555438,76.61534507,193.62,193.51,4.7445]
[1735198555633,19.96244966,193.62,193.51,3.1703]
[1735198555844,12.82843357,193.59,193.51,3.1703]
[1735198556042,12.82843357,193.59,193.48,3.86]
[1735198557245,2.5861,193.53,193.48,6.4465]
[1735198557641,12.82843357,193.59,193.48,3.86]
[1735198557846,19.96244966,193.59,193.52,2.5861]
[1735198558240,19.96244966,193.59,193.49,1.6438]
[1735198558740,19.96244966,193.59,193.48,3.86]
[1735198558940,28.37885186,193.61,193.5,12.82843357]
[1735198559143,28.37885186,193.61,193.51,3.095]
[1735198559442,2.5855,193.57,193.52,2.586]
[1735198559746,12.82843357,193.61,193.51,3.095]
[1735198559937,12.82843357,193.61,193.51,5.6812]
[1735198561146,16.68843357,193.61,193.51,3.095]
[1735198561348,12.82843357,193.58,193.49,1.6557]
[1735198561647,2.5857,193.56,193.49,1.6557]
[1735198561941,12.82843357,193.58,193.49,1.6557]
[1735198562342,2.586,193.53,193.49,4.2422]
[1735198562541,12.82843357,193.58,193.49,1.6557]
[1735198563040,12.82843357,193.58,193.49,4.7685]
[1735198563243,2.5858,193.55,193.51,2.5862]
[1735198565446,2.5856,193.57,193.52,2.586]
[1735198565644,19.96244966,193.61,193.52,2.586]
[1735198566149,19.96244966,193.61,193.49,4.7685]
[1735198567348,28.37885186,193.59,193.49,7.355]
[1735198567943,2.5861,193.53,193.49,7.355]
[1735198568146,2.5861,193.53,193.49,5.6993]
[1735198568744,2.5857,193.56,193.51,2.5861]
[1735198568942,28.37885186,193.59,193.49,3.1128]
[1735198569347,2.5862,193.52,193.49,3.1128]
[1735198569542,28.37885186,193.6,193.49,3.1128]
[1735198569742,2.5853,193.58,193.54,2.5858]
[1735198569944,28.37885186,193.6,193.49,3.1128]
[1735198570341,2.5856,193.56,193.52,2.586]
[1735198570548,28.37885186,193.6,193.51,3.86]
[1735198570847,28.37885186,193.62,193.51,3.86]
[1735198571446,2.5854,193.58,193.54,2.5858]
[1735198571945,2.5851,193.6,193.51,3.86]
[1735198572152,28.37885186,193.63,193.51,3.86]
[1735198573348,2.5852,193.6,193.55,2.5856]
[1735198573953,2.5852,193.6,193.51,3.86]
[1735198574249,41.57066991,193.64,193.53,12.82843357]
[1735198574649,2.5849,193.61,193.57,2.5854]
[1735198575051,2.5851,193.6,193.54,2.5858]
[1735198575252,12.82843357,193.63,193.51,3.86]
[1735198575448,7.13401609,193.64,193.52,12.82843357]
[1735198575751,2.585,193.61,193.52,12.82843357]
[1735198576155,2.585,193.61,193.57,2.5854]
[1735198577050,12.82843357,193.64,193.52,12.82843357]
[1735198577263,12.82843357,193.64,193.51,3.86]
[1735198577651,12.82843357,193.64,193.55,2.5856]
[1735198577956,12.82843357,193.64,193.5,14.48883357]
[1735198578254,12.82843357,193.64,193.51,3.76]
[1735198578459,2.585,193.61,193.51,3.76]
[1735198579557,12.82843357,193.64,193.53,12.82843357]
[1735198579753,7.13401609,193.65,193.6,2.585]
[1735198580058,7.13401609,193.65,193.57,3.76]
[1735198580357,36.58228991,193.66,193.58,11.37903805]
[1735198580651,28.37885186,193.66,193.62,8.20343805]
[1735198580960,36.58228991,193.66,193.59,1.642]
[1735198581255,8.20343805,193.64,193.59,1.642]
[1735198581555,2.5848,193.62,193.58,3.1756]
[1735198581755,8.20343805,193.6,193.53,8.20343805]
[1735198582361,2.5854,193.58,193.53,10.78933805]
[1735198582560,8.20343805,193.6,193.53,8.20343805]
[1735198582750,10.78853805,193.6,193.55,2.5857]
[1735198583357,8.20343805,193.6,193.56,2.5856]
[1735198583757,8.20343805,193.6,193.53,8.20343805]
[1735198584162,2.5852,193.59,193.53,2.5859]
[1735198584460,2.5852,193.59,193.51,3.76]
[1735198584859,2.5851,193.6,193.55,2.5856]
[1735198585160,2.5851,193.6,193.51,3.76]
[1735198587460,2.5851,193.6,193.55,2.5856]
[1735198588961,12.82524398,193.63,193.51,3.76]
[1735198589264,32.13885186,193.66,193.56,2.5853]
[1735198589465,12.82524398,193.65,193.51,3.76]
[1735198589664,2.5845,193.63,193.59,2.5849]
[1735198589962,7.13401609,193.66,193.57,3.76]
[1735198590269,19.95926007,193.68,193.58,3.14]
[1735198590560,2.584,193.66,193.61,2.5846]
[1735198590865,2.584,193.66,193.58,3.14]
[1735198591064,19.95926007,193.68,193.58,3.14]
[1735198591265,2.5839,193.67,193.58,3.14]
[1735198591461,12.82524398,193.71,193.58,3.14]
[1735198592562,12.82524398,193.71,193.59,12.82524398]
[1735198592966,12.82524398,193.71,193.58,3.14]
[1735198593162,12.82524398,193.65,193.5,7.15481856]
[1735198593369,12.82524398,193.62,193.51,1.6595]
[1735198593668,2.585,193.59,193.54,2.5856]
[1735198593869,12.82524398,193.62,193.54,2.5856]
[1735198594071,12.82524398,193.62,193.51,1.6595]
[1735198594372,2.5854,193.57,193.52,2.5859]
[1735198595172,2.5854,193.57,193.51,1.6595]
[1735198595368,12.82524398,193.62,193.53,2.5857]
[1735198595577,2.5851,193.59,193.51,1.6595]
[1735198595873,44.96409584,193.65,193.52,12.82524398]
[1735198596373,2.5847,193.62,193.52,12.82524398]
[1735198596870,16.58524398,193.65,193.52,12.82524398]
[1735198597066,2.5847,193.61,193.52,12.82524398]
[1735198597469,2.5847,193.61,193.56,2.5853]
[1735198597769,16.58524398,193.65,193.52,12.82524398]
[1735198597973,2.5849,193.6,193.55,2.5854]
[1735198598169,2.5849,193.6,193.52,12.82524398]
[1735198598473,2.5847,193.62,193.57,2.5852]
[1735198599273,2.5847,193.62,193.58,2.5851]
[1735198600864,28.37885186,193.69,193.55,16.58524398]
[1735198601174,41.20409584,193.69,193.55,16.58524398]
[1735198601769,41.20409584,193.69,193.58,12.82524398]
[1735198601974,41.20409584,193.69,193.59,4.8228]
[1735198602170,12.82524398,193.69,193.59,4.8228]
[1735198602575,7.13401609,193.71,193.64,2.5842]
[1735198602774,7.13401609,193.71,193.59,4.8228]
[1735198602970,7.13401609,193.71,193.61,12.82524398]
[1735198603175,7.13401609,193.71,193.62,3.66]
[1735198603475,23.82823577,193.72,193.62,3.66]
[1735198603476,2.5834,193.72,193.62,3.66]
[1735198604068,2.5831,193.73,193.62,3.66]
[1735198604474,19.95926007,193.75,193.68,2.5836]
[1735198604675,2.583,193.74,193.64,12.82524398]
[1735198605572,2.583,193.74,193.69,2.5836]
[1735198606079,2.5827,193.76,193.72,2.5832]
[1735198607476,15.40774398,193.78,193.73,2.5831]
[1735198607868,12.82524398,193.78,193.68,6.727]
[1735198608273,12.82524398,193.75,193.68,3.66]
[1735198608777,12.82524398,193.75,193.66,2.584]
[1735198609280,30.67657707,193.86,193.68,12.82524398]
[1735198609477,30.67657707,193.86,193.69,4.6927]
[1735198609478,12.82524398,193.84,193.69,4.6927]
[1735198609778,28.37885186,193.82,193.7,16.48524398]
[1735198610176,28.37885186,193.82,193.75,2.5828]
[1735198610773,28.37885186,193.82,193.7,16.48524398]
[1735198610978,2.5823,193.79,193.7,16.48524398]
[1735198611178,12.82524398,193.81,193.69,4.6927]
[1735198612080,12.82524398,193.81,193.7,2.5834]
[1735198612275,12.82524398,193.81,193.69,4.6927]
[1735198612684,2.5824,193.79,193.72,2.5832]
[1735198612878,2.5824,193.79,193.69,4.6927]
[1735198613077,12.82524398,193.81,193.7,3.66]
[1735198613385,2.5825,193.78,193.72,2.5831]
[1735198613681,12.82524398,193.81,193.72,2.5831]
[1735198613881,2.5828,193.76,193.7,6.2434]
[1735198614381,2.5828,193.76,193.7,3.66]
[1735198614773,2.5826,193.78,193.7,3.66]
[1735198614982,12.82524398,193.81,193.7,3.66]
[1735198615680,3.66,193.82,193.7,3.66]
[1735198615873,2.29772521,193.86,193.7,3.66]
[1735198615874,2.29772521,193.86,193.7,16.48524398]
[1735198616074,15.12296919,193.86,193.7,16.48524398]
[1735198616778,2.29772521,193.86,193.76,12.82524398]
[1735198616984,12.82524398,193.89,193.77,6.9004]
[1735198617382,2.5814,193.87,193.81,2.5819]
[1735198618290,2.5814,193.87,193.82,2.5818]
[1735198618675,2.5814,193.86,193.82,2.5818]
[1735198618881,2.5814,193.86,193.77,8.5655]
[1735198619082,12.82524398,193.89,193.61,33.64005358]
[1735198619382,2.582,193.82,193.73,12.82524398]
[1735198619583,2.582,193.82,193.74,5.3004]
[1735198620481,12.82524398,193.86,193.77,2.5826]
[1735198620682,2.582,193.81,193.77,2.5826]
[1735198620882,12.82524398,193.86,193.77,2.5826]
[1735198621079,2.5818,193.83,193.79,2.5823]
[1735198621285,7.13401609,193.94,193.76,12.82524398]
[1735198621286,12.82524398,193.89,193.76,12.82524398]
[1735198622887,2.5816,193.85,193.79,2.5822]
[1735198623088,2.5816,193.85,193.76,12.82524398]
[1735198623485,2.5815,193.86,193.8,2.582]
[1735198623691,12.82524398,193.89,193.76,12.82524398]
[1735198624193,12.82524398,193.92,193.79,12.82524398]
[1735198624386,12.82524398,193.95,193.8,5.1929]
[1735198624789,7.13401609,193.98,193.85,12.82524398]
[1735198624987,7.13401609,193.98,193.86,5.1574]
[1735198625193,7.13401609,193.98,193.86,6.7912]
[1735198625588,2.5803,193.94,193.89,2.5808]
[1735198625787,12.82524398,194.0,193.88,12.82524398]
[1735198625989,2.5802,193.96,193.91,2.5806]
[1735198626193,12.82524398,194.0,193.89,1.5529]
[1735198626588,2.5801,193.96,193.89,1.5529]
[1735198627192,12.82524398,194.0,193.89,1.5529]
[1735198627392,2.5799,193.97,193.92,2.5806]
[1735198627984,2.5799,193.97,193.91,2.5806]
[1735198628190,2.5799,193.97,193.89,1.5529]
[1735198628383,12.82524398,194.03,193.89,1.5529]
[1735198628588,12.82524398,194.03,193.91,12.82524398]
[1735198628789,12.82524398,194.03,193.92,3.64]
[1735198628985,2.5794,194.01,193.94,2.5802]
[1735198629696,12.82524398,194.03,193.94,2.5802]
[1735198629894,2.5795,194.0,193.92,3.64]
[1735198630197,2.5795,194.0,193.95,2.5802]
[1735198630395,12.82524398,194.03,193.92,3.64]
[1735198630591,2.5797,193.99,193.93,2.5804]
[1735198631191,12.82524398,194.03,193.91,12.82524398]
[1735198631391,3.64,194.07,193.89,1.5529]
[1735198631392,12.82524398,194.0,193.89,1.5529]
[1735198631793,2.5802,193.96,193.89,1.5529]
[1735198632097,3.56,194.01,193.87,3.56]
[1735198632098,12.82524398,193.97,193.87,3.56]
[1735198632395,12.82524398,193.94,193.86,1.5174]
[1735198632787,2.5804,193.94,193.87,2.5812]
[1735198632993,2.5804,193.94,193.86,1.5174]
[1735198633194,12.82524398,193.97,193.86,1.5174]
[1735198633595,2.5806,193.92,193.86,1.5174]
[1735198633795,12.82524398,193.97,193.86,1.5174]
[1735198633990,3.56,194.01,193.86,1.5174]
[1735198633991,12.82524398,193.94,193.86,1.5174]
[1735198634498,2.5806,193.92,193.86,1.5174]
[1735198634798,12.82524398,193.94,193.86,1.5174]
[1735198635093,3.56,194.01,193.86,1.5174]
[1735198635292,5.85554938,194.05,193.86,14.34264398]
[1735198635494,12.82524398,194.02,193.89,12.82524398]
[1735198635789,12.82524398,194.02,193.9,3.56]
[1735198636297,2.5801,193.96,193.9,6.1407]
[1735198636493,2.29554938,194.05,193.9,3.56]
[1735198636698,12.82524398,194.04,193.91,1.5958]
[1735198636897,2.5795,194.0,193.91,1.5958]
[1735198638401,2.5795,194.0,193.94,2.5802]
[1735198641102,12.82524398,194.04,193.94,2.5802]
[1735198641303,2.5797,193.99,193.94,2.5802]
[1735198641897,12.82524398,194.04,193.91,1.5958]
[1735198642196,12.82524398,194.01,193.91,1.5958]
[1735198642595,2.5801,193.96,193.91,4.1765]
[1735198643504,12.82524398,194.01,193.91,1.5958]
[1735198643505,2.5802,193.95,193.91,1.5958]
[1735198644003,12.82524398,194.01,193.9,2.5808]
[1735198644203,2.5803,193.94,193.88,2.581]
[1735198644400,2.5803,193.94,193.87,3.56]
[1735198645201,2.5805,193.93,193.87,3.56]
[1735198646107,2.5805,193.93,193.88,2.5811]
[1735198646508,2.5802,193.95,193.87,3.56]
[1735198646702,2.5802,193.95,193.9,2.5808]
[1735198647305,2.5804,193.94,193.9,2.5808]
[1735198649600,12.82524398,194.01,193.9,2.5808]
[1735198649803,2.5802,193.95,193.9,2.5808]
[1735198651810,2.5801,193.96,193.91,2.5806]
[1735198652207,2.5801,193.96,193.89,12.82524398]
[1735198652409,2.5801,193.96,193.91,2.5806]
[1735198653212,2.5798,193.98,193.89,12.82524398]
[1735198653412,12.82524398,194.04,193.89,12.82524398]
[1735198653608,12.82524398,194.04,193.93,2.5803]
[1735198653812,2.5796,193.99,193.89,12.82524398]
[1735198654011,12.82524398,194.04,193.89,12.82524398]
[1735198654413,2.5798,193.98,193.94,2.5801]
[1735198655207,2.58,193.96,193.89,12.82524398]
[1735198655806,12.82524398,194.04,193.89,12.82524398]
[1735198656113,12.82524398,194.04,193.93,2.5804]
[1735198656114,2.5798,193.98,193.93,2.5804]
[1735198659512,2.5798,193.98,193.86,1.5174]
[1735198659513,12.82524398,194.01,193.86,1.5174]
[1735198659713,12.82524398,194.01,193.89,2.5808]
[1735198659914,12.82524398,194.01,193.86,5.0774]
[1735198660818,2.5802,193.95,193.9,2.5808]
[1735198661913,2.5803,193.94,193.9,2.5808]
[1735198662213,7.13401609,194.0,193.86,5.0774]
[1735198662413,12.82524398,193.98,193.86,1.5174]
[1735198662611,12.82524398,193.95,193.86,1.5174]
[1735198662816,12.82524398,193.95,193.85,1.5157]
[1735198663018,12.82524398,193.92,193.81,3.48]
[1735198663219,12.82524398,193.92,193.79,15.96204398]
[1735198663520,3.48,193.94,193.79,17.89974398]
[1735198663715,3.48,193.94,193.83,12.82524398]
[1735198664621,41.52685464,193.93,193.8,14.36754398]
[1735198665621,12.82524398,193.92,193.8,14.36754398]
[1735198665820,2.5814,193.86,193.8,16.94954398]
[1735198666517,2.5812,193.88,193.83,2.5817]
[1735198666717,12.82524398,193.92,193.8,14.36754398]
[1735198666919,28.37885186,193.94,193.83,12.82524398]
[1735198667725,12.82524398,193.95,193.83,12.82524398]
[1735198668918,2.5806,193.92,193.85,2.5814]
[1735198669123,12.82524398,193.95,193.85,2.5814]
[1735198669824,12.82524398,193.95,193.83,12.82524398]
[1735198670021,2.5804,193.93,193.87,2.5812]
[1735198670222,12.82524398,193.95,193.87,2.5812]
[1735198670822,12.82524398,193.95,193.83,12.82524398]
[1735198671022,2.5808,193.9,193.85,2.5814]
[1735198671225,2.5808,193.9,193.83,12.82524398]
[1735198671626,12.82524398,193.95,193.83,12.82524398]
[1735198671824,12.82524398,193.95,193.86,2.5813]
[1735198672317,16.30524398,193.98,193.83,12.82524398]
[1735198672522,16.30524398,193.98,193.87,2.5811]
[1735198673428,2.5806,193.92,193.87,2.5811]
[1735198673624,16.30524398,193.98,193.88,2.581]
[1735198674031,2.5805,193.93,193.88,2.581]
[1735198675324,2.5806,193.92,193.88,2.581]
[1735198676521,2.5804,193.93,193.88,2.581]
[1735198676727,12.82524398,193.98,193.87,1.5523]
[1735198677030,23.43926007,194.01,193.87,1.5523]
[1735198677232,2.5801,193.96,193.91,2.5807]
[1735198677631,2.5799,193.97,193.93,2.5804]
[1735198678134,3.48,194.03,193.91,3.48]
[1735198678339,2.5798,193.98,193.91,3.48]
[1735198678930,2.5798,193.98,193.94,2.5802]
[1735198679631,2.5796,193.99,193.95,2.5801]
[1735198683535,2.29554938,194.05,193.92,12.82524398]
[1735198683733,2.5798,193.98,193.93,2.5803]
[1735198683936,2.5798,193.98,193.92,12.82524398]
[1735198684543,2.5794,194.01,193.96,2.5799]
[1735198684739,12.82524398,194.07,193.96,2.5799]
[1735198685340,12.82524398,194.07,193.93,2.5803]
[1735198685538,12.82524398,194.07,193.92,12.82524398]
[1735198686238,10.61401609,194.08,193.95,12.82524398]
[1735198686239,7.13401609,194.08,193.95,12.82524398]
[1735198686437,28.37885186,194.08,193.98,12.82524398]
[1735198686640,28.37885186,194.08,193.99,3.48]
[1735198686834,2.5787,194.06,194.01,2.5793]
[1735198687036,2.5787,194.06,193.99,3.48]
[1735198687234,2.579,194.04,193.99,6.0596]
[1735198687438,28.37885186,194.08,193.97,1.514]
[1735198687643,28.37885186,194.08,193.96,3.1298]
[1735198687843,12.82524398,194.07,193.96,5.7097]
[1735198688036,16.30524398,194.07,193.96,5.7097]
[1735198688441,16.30524398,194.07,193.96,3.1298]
[1735198688442,2.5793,194.02,193.96,3.1298]
[1735198688635,2.5793,194.02,193.97,2.5799]
[1735198688843,2.5793,194.02,193.96,3.1298]
[1735198690444,12.82524398,194.1,193.99,2.5795]
[1735198691145,2.579,194.04,193.99,2.5795]
[1735198691841,12.82524398,194.1,193.99,2.5795]
[1735198692054,2.5791,194.03,193.96,3.1298]
[1735198692349,2.5791,194.03,193.98,2.5797]
[1735198692546,2.5793,194.02,193.96,3.1298]
[1735198692748,2.5793,194.02,193.97,2.5798]
[1735198694360,2.5793,194.02,193.96,3.1298]
[1735198694562,2.5793,194.02,193.98,2.5797]
[1735198695559,12.82524398,194.07,193.96,3.1298]
[1735198695753,12.82524398,194.07,193.96,5.7097]
[1735198696157,2.5794,194.01,193.96,5.7097]
[1735198698959,2.5794,194.01,193.96,3.1298]
[1735198699261,2.5794,194.01,193.97,2.5798]
[1735198701757,12.82524398,194.07,193.96,3.1298]
[1735198702057,12.82524398,194.01,193.88,1.52756]
[1735198702260,2.5805,193.93,193.89,2.5809]
[1735198702566,12.82524398,193.98,193.88,1.52756]
[1735198702964,12.82524398,193.98,193.89,2.5809]
[1735198703864,2.5804,193.94,193.89,2.5809]
[1735198712165,2.5804,193.93,193.89,2.5809]
[1735198713865,3.48,194.0,193.89,12.82524398]
[1735198714070,7.13401609,194.02,193.89,12.82524398]
[1735198714861,7.13401609,194.02,193.94,2.5802]
[1735198715273,3.48,194.03,193.94,2.5802]
[1735198715765,2.5798,193.98,193.94,2.5802]
[1735198716965,2.5796,194.0,193.95,2.58]
[1735198717171,10.61401609,194.05,193.95,2.58]
[1735198717472,2.5796,194.0,193.95,2.58]
[1735198717966,10.61401609,194.05,193.95,2.58]
[1735198718172,2.5796,194.0,193.95,2.58]
[1735198718367,3.48,194.05,193.95,2.58]
[1735198718573,3.48,194.05,193.96,2.5799]
[1735198718870,2.5794,194.01,193.96,2.5799]
[1735198719263,2.5795,194.0,193.96,2.5799]
[1735198719661,5.77521519,194.06,193.93,3.48]
[1735198719866,2.29521519,194.06,193.95,12.82524398]
[1735198720267,2.29521519,194.06,193.93,8.3432]
[1735198720268,10.46476814,194.06,193.99,8.16955295]
[1735198720669,2.5789,194.04,194.0,2.5794]
[1735198720974,2.29521519,194.06,194.03,8.16955295]
[1735198722261,2.29521519,194.06,194.01,2.5793]
[1735198722262,4.87401519,194.06,194.01,2.5793]
[1735198722466,45.8362531,194.09,193.99,16.12114611]
[1735198722875,45.8362531,194.09,194.02,12.76114611]
[1735198723568,7.13401609,194.13,194.02,12.76114611]
[1735198723773,23.2551622,194.15,194.02,12.76114611]
[1735198724573,7.13401609,194.15,194.05,12.76114611]
[1735198725274,7.13401609,194.15,194.08,2.5784]
[1735198726166,2.5777,194.13,194.08,2.5784]
[1735198727373,2.5779,194.12,194.08,2.5784]
[1735198729873,2.5779,194.12,194.07,2.5785]
[1735198730671,2.5778,194.13,194.08,2.5783]
[1735198731073,12.76114611,194.17,194.05,3.36]
[1735198732478,2.5779,194.12,194.07,2.5785]
[1735198734583,12.76114611,194.17,194.05,3.36]
[1735198734880,2.5778,194.13,194.05,3.36]
[1735198735373,2.5773,194.17,194.1,12.76114611]
[1735198735575,2.5773,194.17,194.11,4.9291]
[1735198735775,2.5773,194.17,194.11,6.46]
[1735198736480,2.5773,194.17,194.12,2.5779]
[1735198742277,2.5773,194.17,194.13,8.15774603]
[1735198743883,2.5774,194.16,194.13,8.15774603]
[1735198744082,8.15774603,194.15,194.08,8.15774603]
[1735198744486,2.5781,194.11,194.08,8.15774603]
[1735198745388,2.5783,194.09,194.06,11.49774603]
[1735198745690,8.15774603,194.13,194.06,11.49774603]
[1735198745893,2.5786,194.07,194.02,10.73694603]
[1735198746187,8.15774603,194.11,194.03,3.34]
[1735198746379,8.15774603,194.09,194.03,3.34]
[1735198746579,8.15774603,194.09,194.02,11.49774603]
[1735198746991,2.5788,194.06,194.02,11.49774603]
[1735198747491,2.5788,194.05,194.02,11.49774603]
[1735198747989,8.15774603,194.09,194.02,11.49774603]
[1735198748193,2.5787,194.06,194.02,3.34]
[1735198749287,12.7608764,194.1,193.9,53.64]
[1735198749488,12.7608764,194.1,193.95,12.7608764]
[1735198749993,12.7608764,194.1,193.98,2.5797]
[1735198750494,2.5792,194.03,193.98,2.5797]
[1735198752799,2.5793,194.02,193.98,2.5797]
[1735198753088,12.7608764,194.07,193.95,12.7608764]
[1735198753292,12.7608764,194.04,193.92,12.7608764]
[1735198753485,2.5794,194.01,193.92,2.5805]
[1735198753687,12.7608764,194.04,193.92,2.5805]
[1735198754084,2.5798,193.98,193.93,2.5804]
[1735198754486,12.7608764,194.04,193.92,3.32]
[1735198754790,2.5794,194.01,193.94,12.7608764]
[1735198755787,2.5791,194.03,193.97,2.5797]
[1735198755995,16.0808764,194.07,193.94,12.7608764]
[1735198756285,12.7608764,194.07,193.95,3.32]
[1735198757394,12.7608764,194.1,193.97,12.7608764]
[1735198757990,2.5788,194.06,194.01,2.5793]
[1735198758196,3.32,194.11,194.0,12.7608764]
[1735198758396,3.32,194.11,194.01,3.32]
[1735198758596,2.5783,194.09,194.04,2.5789]
[1735198759397,2.5781,194.1,194.05,2.5788]
[1735198759597,3.32,194.15,194.03,12.7608764]
[1735198760001,2.578,194.12,194.07,2.5785]
[1735198760996,2.578,194.12,194.03,12.7608764]
[1735198761197,2.5776,194.15,194.06,12.7608764]
[1735198761400,2.5776,194.15,194.07,4.8789]
[1735198761699,2.29380392,194.17,194.11,2.578]
[1735198762493,2.5774,194.16,194.11,2.578]
[1735198762901,2.5774,194.16,194.09,12.7608764]
[1735198762902,2.29380392,194.17,194.09,12.7608764]
[1735198763091,2.5772,194.17,194.09,12.7608764]
[1735198763291,12.7608764,194.22,194.09,12.7608764]
[1735198763895,2.5769,194.19,194.15,2.5775]
[1735198764899,2.5769,194.19,194.09,12.7608764]
[1735198765200,2.5769,194.19,194.14,2.5776]
[1735198765798,58.56010325,194.25,194.14,2.5776]
[1735198766003,12.7608764,194.19,194.08,1.5885]
[1735198766903,3.32,194.18,194.08,1.5885]
[1735198767103,2.578,194.12,194.08,1.5885]
[1735198767997,2.578,194.11,194.05,3.32]
[1735198768197,2.578,194.11,194.05,5.8987]
[1735198768396,2.578,194.11,194.05,3.32]
[1735198768703,2.578,194.11,194.04,1.5398]
[1735198768903,2.578,194.11,194.05,3.32]
[1735198769295,2.578,194.11,194.06,2.5787]
[1735198773504,7.13401609,194.21,194.05,3.32]
[1735198773810,7.13401609,194.21,194.12,12.7608764]
[1735198774007,7.13401609,194.21,194.13,3.32]
[1735198774209,7.13401609,194.21,194.13,4.91]
[1735198774405,9.71081609,194.21,194.13,4.91]
[1735198774713,7.13401609,194.21,194.13,4.91]
[1735198774910,9.71071609,194.21,194.16,2.5773]
[1735198775806,2.5767,194.21,194.16,2.5773]
[1735198776910,2.5763,194.24,194.19,2.5768]
[1735198777315,2.5767,194.21,194.16,1.6433]
[1735198777611,28.37885186,194.3,194.13,6.4878]
[1735198777809,12.7608764,194.25,194.13,6.4878]
[1735198778111,2.5769,194.2,194.14,2.5776]
[1735198779805,2.5769,194.19,194.14,2.5776]
[1735198785615,2.5773,194.17,194.12,2.5778]
[1735198786115,12.7608764,194.22,194.12,2.5778]
[1735198786313,2.5775,194.15,194.1,2.578]
[1735198787015,16.0808764,194.19,194.07,2.5785]
[1735198787411,2.578,194.12,194.07,2.5785]
[1735198787613,16.0808764,194.19,194.06,16.0808764]
[1735198788507,16.0808764,194.19,194.06,18.6595764]
[1735198788508,2.578,194.11,194.06,18.6595764]
[1735198789818,2.5778,194.13,194.06,16.0808764]
[1735198790915,12.7608764,194.19,194.06,16.0808764]
[1735198791115,2.5776,194.15,194.1,2.5781]
[1735198791417,2.5776,194.15,194.06,16.0808764]
[1735198792019,3.32,194.21,194.06,16.0808764]
[1735198792216,2.5774,194.16,194.06,16.0808764]
[1735198792914,2.5774,194.16,194.11,2.578]
[1735198793317,2.5774,194.16,194.1,1.5933]
[1735198793513,2.5774,194.16,194.12,2.5778]
[1735198794718,2.5772,194.17,194.13,2.5777]
[1735198796424,2.5773,194.16,194.13,2.5777]
[1735198801333,12.7608764,194.19,194.1,1.5933]
[1735198801533,12.7608764,194.19,194.07,3.32]
[1735198801726,12.7608764,194.16,194.07,3.32]
[1735198801927,2.5777,194.14,194.07,3.32]
[1735198802240,12.7608764,194.16,194.07,3.32]
[1735198802435,12.7608764,194.13,194.01,8.2167]
[1735198802633,2.5786,194.07,194.01,6.6198]
[1735198803226,12.7608764,194.13,194.01,6.6198]
[1735198803427,12.7608764,194.13,194.01,3.2998]
[1735198804733,12.7608764,194.13,194.01,16.0606764]
[1735198805032,19.89489249,194.13,194.01,16.0606764]
[1735198805333,2.5782,194.1,194.01,16.0606764]
[1735198805734,2.5782,194.1,194.03,2.579]
[1735198805929,2.5782,194.1,194.01,16.0606764]
[1735198806328,2.5782,194.1,194.04,2.5788]
[1735198806531,2.5782,194.1,194.01,16.0606764]
[1735198807334,2.5782,194.1,194.04,2.5788]
[1735198807530,2.5783,194.09,194.04,2.5788]